fUSD/lending_fUSD_20240414
["ID","MTS","AMOUNT","RATE_DAILY","PERIOD"]
[322621285,1713128013609,-528.57,0.00035819,30]
[322621286,1713128013646,-1202.31,0.00035819,30]
[322621287,1713128013681,-1302.31,0.00035819,30]
[322621288,1713128013716,-500.0,0.00035819,30]
[322621289,1713128013752,-1202.31,0.00035819,30]
[322621290,1713128013788,-1302.31,0.00035819,30]
[322621291,1713128013825,-528.57,0.00035819,30]
[322621292,1713128013859,-500.0,0.00035819,30]
[322621293,1713128013894,-500.0,0.00035819,30]
[322621294,1713128013929,-1202.31,0.00035819,30]
[322621295,1713128013965,-1302.31,0.00035819,30]
[322621296,1713128013999,-528.57,0.00035819,30]
[322621297,1713128014034,-500.0,0.00035819,30]
[322621298,1713128014070,-500.0,0.00035819,30]
[322621299,1713128014107,-1202.31,0.00035819,30]
[322621300,1713128014141,-887.13125786,0.00035819,30]
[322621302,1713128073524,1000.0,0.000135,2]
[322621307,1713128239122,336.8082546,0.000135,2]
[322621308,1713128240733,231.75247328,0.000135,2]
[322621309,1713128296351,323.54057448,0.00015,2]
[322621310,1713128312491,299.88572988,0.00015,2]
[322621311,1713128442151,724.55,0.00017715,2]
[322621312,1713128603385,1791.1287,0.00018,2]
[322621334,1713128910973,705.42,0.00017422,2]
[322621473,1713129031940,-218.90770004,0.00018061,2]
[322621474,1713129031950,-218.90770004,0.00018062,2]
[322621475,1713129031958,-218.90770004,0.00018063,2]
[322621476,1713129031968,-1652.16774376,0.000181,2]
[322621477,1713129031978,-166.99969482,0.00019044,2]
[322621478,1713129031987,-159.01085343,0.00019143,2]
[322621479,1713129031996,-23880.0,0.00019274,2]
[322621480,1713129032006,-153.31,0.00019308,2]
[322621481,1713129032016,-250.0,0.00019315,2]
[322621482,1713129032025,-200.0,0.00019317,2]
[322621483,1713129032034,-637.84,0.00019343,2]
[322621484,1713129032044,-150.0,0.0001939,2]
[322621485,1713129032053,-150.0,0.0001939,2]
[322621486,1713129032063,-492.8,0.00019391,2]
[322621487,1713129032073,-4490.14,0.00019391,2]
[322621488,1713129032084,-349.23,0.00019391,2]
[322621489,1713129032094,-169.12,0.00019576,2]
[322621490,1713129032103,-169.87,0.00019681,2]
[322621491,1713129032113,-705.42,0.00019686,2]
[322621492,1713129032123,-507.2,0.00019803,2]
[322621493,1713129032132,-150.99,0.00019887,2]
[322621494,1713129032141,-797.51529173,0.00019949,2]
[322621495,1713129032151,-167.64,0.00020183,2]
[322621496,1713129032162,-1233.9029914,0.00020296,2]
[322621497,1713129032173,-3094.98748711,0.00020424,2]
[322621499,1713129032183,-2217.12015307,0.00020511,2]
[322621501,1713129032193,-211.61,0.00020548,2]
[322621503,1713129032202,-13887.0,0.00020592,2]
[322621505,1713129032212,-209.6936,0.000206,2]
[322621507,1713129032220,-434.1813,0.000206,2]
[322621509,1713129032230,-7117.0461,0.000206,2]
[322621511,1713129032239,-2324.1767,0.000206,2]
[322621513,1713129032248,-3094.98748711,0.00020643,2]
[322621515,1713129032258,-43603.4834061,0.000207,2]
[322621517,1713129032269,-990.04107208,0.000207,2]
[322621519,1713129032280,-1202.96642182,0.000207,2]
[322621521,1713129032290,-500.72257318,0.000207,2]
[322621523,1713129032302,-499.27742682,0.000207,2]
[322621525,1713129032311,-1659.5068,0.000207,2]
[322621527,1713129032321,-2162.03036107,0.000207,2]
[322621529,1713129032330,-1487.24318404,0.00020722,2]
[322621531,1713129032463,-338.70707334,0.00020722,2]
[322621532,1713129032474,-336.0801036,0.00020722,2]
[322621534,1713129032485,-88.70153661,0.00020767,2]
[322621543,1713129032561,-312.06068321,0.00020767,2]
[322621546,1713129032574,-460.55939495,0.00020767,2]
[322621602,1713129037915,-2162.03036098,0.00020744,2]
[322621603,1713129037924,-194950.2762,0.000208,2]
[322621604,1713129037934,-39991.1093,0.000208,2]
[322621605,1713129037944,-203.87195292,0.000208,2]
[322621606,1713129037952,-306.40933339,0.000208,2]
[322621607,1713129037961,-2272.17672094,0.00020811,2]
[322621608,1713129037970,-306.40933338,0.00020817,2]
[322621609,1713129037979,-1233.9029914,0.00020819,2]
[322621610,1713129037988,-2272.17672094,0.00020833,2]
[322621611,1713129037997,-306.40933338,0.00020833,2]
[322621612,1713129038006,-328.2368851,0.00020843,2]
[322621613,1713129038015,-203.8719529,0.00020845,2]
[322621614,1713129038024,-306.40933338,0.0002085,2]
[322621615,1713129038033,-2272.17672094,0.00020856,2]
[322621616,1713129038042,-306.40933338,0.00020867,2]
[322621617,1713129038051,-328.2368851,0.00020871,2]
[322621618,1713129038060,-2272.17672094,0.00020878,2]
[322621619,1713129038070,-306.40933338,0.00020883,2]
[322621620,1713129038082,-165.02904893,0.0002089,2]
[322621621,1713129038092,-152.48926729,0.0002089,2]
[322621622,1713129038101,-203.8719529,0.0002089,2]
[322621623,1713129038110,-414.98245012,0.0002089,2]
[322621624,1713129038119,-100000.0,0.00020896,2]
[322621625,1713129038128,-106975.82927821,0.000209,2]
[322621626,1713129038137,-2867.545659,0.000209,2]
[322621627,1713129038147,-80044.91926275,0.000209,3]
[322621628,1713129038156,-6545.1193,0.000209,2]
[322621629,1713129038171,-1000.0,0.000209,2]
[322621630,1713129038180,-4493.0789875,0.000209,2]
[322621632,1713129038189,-6741.814717,0.000209,2]
[322621633,1713129038198,-165.02904893,0.000209,2]
[322621635,1713129038207,-2272.17672094,0.000209,2]
[322621637,1713129038216,-828.06653514,0.000209,2]
[322621639,1713129038226,-828.06653514,0.000209,2]
[322621641,1713129038235,-828.06653514,0.000209,2]
[322621643,1713129038245,-828.06653514,0.000209,2]
[322621645,1713129038254,-828.06653514,0.000209,2]
[322621648,1713129038263,-828.06653514,0.000209,2]
[322621650,1713129038273,-828.06653514,0.000209,2]
[322621652,1713129038282,-328.2368851,0.000209,2]
[322621654,1713129038291,-828.06653514,0.000209,2]
[322621656,1713129038300,-828.06653514,0.000209,2]
[322621658,1713129038310,-828.06653514,0.000209,2]
[322621660,1713129038320,-828.06653514,0.000209,2]
[322621663,1713129038330,-167.0089345,0.000209,2]
[322621664,1713129038339,-1145.80866043,0.000209,3]
[322621666,1713129038348,-159.58389605,0.000209,2]
[322621669,1713129038358,-581.4013585,0.000209,2]
[322621703,1713129038659,-1653.92276145,0.000209,2]
[322621707,1713129038700,-3014.73677396,0.000209,2]
[322621709,1713129038709,-306.40933338,0.000209,2]
[322621712,1713129038720,-11100.57828818,0.000209,2]
[322621714,1713129038730,-179.77,0.00020978,2]
[322621716,1713129038739,-327.01032315,0.00020979,2]
[322621717,1713129038748,-880.0,0.0002098,2]
[322621719,1713129038758,-478735.35957947,0.0002098,2]
[322621722,1713129038767,-414.98245012,0.0002099,2]
[322621723,1713129038777,-414.98245012,0.0002099,2]
[322621726,1713129038786,-535.88569986,0.00020998,2]
[322621727,1713129038795,-705.30963033,0.00020999,2]
[322621730,1713129038804,-780.05382611,0.00020999,2]
[322621732,1713129038813,-187.44418601,0.00020999,2]
[322621734,1713129038822,-3011.73092664,0.00020999,2]
[322621736,1713129038831,-300.0,0.00020999,2]
[322621738,1713129038840,-300.0,0.00020999,2]
[322621740,1713129038849,-300.0,0.00020999,2]
[322621741,1713129038858,-300.0,0.00020999,2]
[322621744,1713129038867,-300.0,0.00020999,2]
[322621745,1713129038876,-300.0,0.00020999,2]
[322621748,1713129038886,-357.66281266,0.00020999,2]
[322621749,1713129038895,-150.0,0.00020999,2]
[322621752,1713129038904,-150.0,0.00020999,2]
[322621754,1713129038915,-150.0,0.00020999,2]
[322621755,1713129038923,-150.0,0.00020999,2]
[322621757,1713129038932,-150.0,0.00020999,2]
[322621759,1713129038943,-150.0,0.00020999,2]
[322621761,1713129038952,-150.0,0.00020999,2]
[322621763,1713129038961,-150.0,0.00020999,2]
[322621765,1713129038970,-150.0,0.00020999,2]
[322621767,1713129038979,-150.0,0.00020999,2]
[322621769,1713129038988,-150.0,0.00020999,2]
[322621771,1713129038997,-150.0,0.00020999,2]
[322621773,1713129039006,-150.0,0.00020999,2]
[322621775,1713129039015,-150.0,0.00020999,2]
[322621777,1713129039024,-150.0,0.00020999,2]
[322621779,1713129039033,-150.0,0.00020999,2]
[322621781,1713129039042,-150.0,0.00020999,2]
[322621783,1713129039051,-189.52971142,0.00020999,2]
[322621785,1713129039060,-500.0,0.00020999,2]
[322621787,1713129039069,-155.4156037,0.00020999,2]
[322621789,1713129039078,-393.71756504,0.00021,2]
[322621791,1713129039087,-2593611.89700554,0.00021,2]
[322621793,1713129039099,-543.84,0.00021,2]
[322621795,1713129039108,-4944292.2756253,0.00021,2]
[322621797,1713129039118,-715.48314253,0.00021,2]
[322621799,1713129039127,-502.24,0.00021,2]
[322621801,1713129039137,-900.0,0.00021,2]
[322621803,1713129039146,-1430.30975111,0.00021,2]
[322621805,1713129039156,-1183.31319573,0.00021,2]
[322621807,1713129039167,-8035361.52843055,0.00021,2]
[322621897,1713129039999,-20050.72586938,0.00021,2]
[322621900,1713129040011,-38816.59706,0.00021,2]
[322621903,1713129040022,-25239.82464,0.00021,2]
[322621906,1713129040034,-40188.70718728,0.00021,2]
[322621961,1713129040384,-1351881.52392696,0.00021,2]
[322622078,1713129040988,-443.43736833,0.00021,2]
[322622082,1713129041001,-17232.60116287,0.00021,2]
[322622104,1713129041113,-2646.60596042,0.00021,2]
[322622109,1713129041124,-1538.7074705,0.00021,2]
[322622112,1713129041136,-469.06718842,0.00021,2]
[322622117,1713129041158,-2162.03036098,0.00020767,2]
[322622120,1713129041171,-5521.26195869,0.00021,2]
[322622338,1713129043431,-2041.37534627,0.00019143,2]
[322622340,1713129043442,-763.26729318,0.00019143,2]
[322622344,1713129043965,-1049.700003,0.00019143,2]
[322622345,1713129043976,-450.180002,0.00019143,2]
[322622346,1713129044183,-12745.33829283,0.00019143,2]
[322622347,1713129044192,-2619.21081074,0.00021,2]
[322622351,1713129046088,-2162.03036098,0.00020789,2]
[322622352,1713129046099,-150.01,0.00020999,2]
[322622353,1713129046109,-42190.65079844,0.00021,2]
[322622354,1713129046120,-95966.85519899,0.00021,2]
[322622355,1713129046148,-676.70442622,0.00021,2]
[322622356,1713129046159,-450.18868969,0.00021,2]
[322622357,1713129046173,-590.82,0.00021,2]
[322622358,1713129046225,-2007.82061776,0.00020999,2]
[322622359,1713129046234,-458642.90379324,0.00021,2]
[322622360,1713129046607,-63665.99999998,0.00021,2]
[322622364,1713129285514,-5548.81022544,0.00036207,30]
[322622365,1713129285552,-500.0,0.00036207,30]
[322622366,1713129285588,-317.87586102,0.00036207,30]
[322622367,1713129285623,-500.0,0.00036207,30]
[322622368,1713129285658,-500.0,0.00036207,30]
[322622369,1713129285691,-347.46606322,0.00036207,30]
[322622370,1713129285725,-964.0,0.00036207,30]
[322622371,1713129285765,-500.0,0.00036207,30]
[322622372,1713129285799,-540.32719076,0.00036207,30]
[322622373,1713129285833,-500.0,0.00036207,30]
[322622374,1713129285866,-501.64050406,0.00036207,30]
[322622375,1713129285902,-502.21056703,0.00036207,30]
[322622376,1713129285935,-500.0,0.00036207,30]
[322622377,1713129285967,-500.0,0.00036207,30]
[322622378,1713129285999,-370.46525228,0.00036207,30]
[322622379,1713129286033,-500.0,0.00036207,30]
[322622380,1713129286072,-500.0,0.00036207,30]
[322622381,1713129286114,-500.0,0.00036207,30]
[322622382,1713129286155,-502.44311011,0.00036207,30]
[322622383,1713129286196,-500.0,0.00036207,30]
[322622384,1713129286234,-500.0,0.00036207,30]
[322622385,1713129286270,-500.0,0.00036207,30]
[322622386,1713129286305,-203.72434155,0.00036207,30]
[322622387,1713129286340,-499.58473339,0.00036207,30]
[322622388,1713129286381,-500.0,0.00036207,30]
[322622389,1713129286416,-506.44510625,0.00036207,30]
[322622390,1713129286451,-500.0,0.00036207,30]
[322622391,1713129286485,-500.0,0.00036207,30]
[322622392,1713129286519,-500.0,0.00036207,30]
[322622393,1713129286553,-500.0,0.00036207,30]
[322622394,1713129286589,-170.63314974,0.00036207,30]
[322622395,1713129286624,-2000.0,0.00036207,30]
[322622396,1713129286658,-2000.0,0.00036207,30]
[322622397,1713129286692,-2000.0,0.00036207,30]
[322622398,1713129286727,-2000.0,0.00036207,30]
[322622399,1713129286762,-2000.0,0.00036207,30]
[322622400,1713129286796,-2000.0,0.00036207,30]
[322622401,1713129286831,-2000.0,0.00036207,30]
[322622402,1713129286866,-2000.0,0.00036207,30]
[322622403,1713129286900,-2103.25171104,0.00036207,30]
[322622404,1713129286933,-500.28725361,0.00036207,30]
[322622405,1713129286970,-500.0,0.00036207,30]
[322622406,1713129287006,-500.0,0.00036207,30]
[322622407,1713129287041,-500.0,0.00036207,30]
[322622408,1713129287074,-500.0,0.00036207,30]
[322622409,1713129287109,-265.18463061,0.00036207,30]
[322622410,1713129287145,-500.0,0.00036207,30]
[322622411,1713129287180,-500.0,0.00036207,30]
[322622412,1713129287214,-500.0,0.00036207,30]
[322622413,1713129287251,-500.0,0.00036207,30]
[322622414,1713129287285,-500.0,0.00036207,30]
[322622415,1713129287319,-500.0,0.00036207,30]
[322622416,1713129287353,-500.0,0.00036207,30]
[322622417,1713129287386,-500.0,0.00036207,30]
[322622418,1713129287420,-500.0,0.00036207,30]
[322622419,1713129287454,-500.0,0.00036207,30]
[322622420,1713129287490,-500.0,0.00036207,30]
[322622421,1713129287526,-500.0,0.00036207,30]
[322622422,1713129287873,-500.0,0.00036207,30]
[322622423,1713129287909,-500.0,0.00036207,30]
[322622424,1713129287943,-500.0,0.00036207,30]
[322622425,1713129287977,-500.0,0.00036207,30]
[322622426,1713129288013,-500.0,0.00036207,30]
[322622427,1713129288047,-500.0,0.00036207,30]
[322622428,1713129288082,-500.0,0.00036207,30]
[322622429,1713129288116,-500.0,0.00036207,30]
[322622430,1713129288150,-628.84519511,0.00036207,30]
[322622431,1713129288189,-500.0,0.00036207,30]
[322622432,1713129288222,-500.0,0.00036207,30]
[322622433,1713129288256,-500.0,0.00036207,30]
[322622434,1713129288289,-500.0,0.00036207,30]
[322622435,1713129288323,-500.0,0.00036207,30]
[322622436,1713129288356,-500.0,0.00036207,30]
[322622437,1713129288390,-500.0,0.00036207,30]
[322622438,1713129288424,-346.47863659,0.00036207,30]
[322622439,1713129288459,-500.0,0.00036207,30]
[322622440,1713129288495,-500.0,0.00036207,30]
[322622441,1713129288532,-500.0,0.00036207,30]
[322622442,1713129288570,-500.0,0.00036207,30]
[322622443,1713129288606,-500.0,0.00036207,30]
[322622444,1713129288641,-500.0,0.00036207,30]
[322622445,1713129288678,-500.0,0.00036207,30]
[322622446,1713129288714,-500.0,0.00036207,30]
[322622447,1713129288748,-500.0,0.00036207,30]
[322622448,1713129288783,-500.0,0.00036207,30]
[322622449,1713129288817,-500.0,0.00036207,30]
[322622450,1713129288852,-500.0,0.00036207,30]
[322622451,1713129288885,-500.0,0.00036207,30]
[322622452,1713129288919,-500.0,0.00036207,30]
[322622453,1713129288953,-179.18562172,0.00036207,30]
[322622454,1713129288987,-500.0,0.00036207,30]
[322622455,1713129289022,-500.0,0.00036207,30]
[322622456,1713129289057,-500.0,0.00036207,30]
[322622457,1713129289091,-500.0,0.00036207,30]
[322622458,1713129289126,-500.0,0.00036207,30]
[322622459,1713129289160,-500.0,0.00036207,30]
[322622460,1713129289196,-500.0,0.00036207,30]
[322622461,1713129289231,-500.0,0.00036207,30]
[322622462,1713129289266,-404.09485666,0.00036207,30]
[322622463,1713129289300,-500.0,0.00036207,30]
[322622464,1713129289334,-500.0,0.00036207,30]
[322622465,1713129289368,-500.0,0.00036207,30]
[322622466,1713129289404,-500.0,0.00036207,30]
[322622467,1713129289438,-500.0,0.00036207,30]
[322622468,1713129289472,-500.0,0.00036207,30]
[322622469,1713129289507,-500.0,0.00036207,30]
[322622470,1713129289542,-500.0,0.00036207,30]
[322622471,1713129289575,-500.0,0.00036207,30]
[322622472,1713129289610,-500.0,0.00036207,30]
[322622473,1713129289645,-181.06320168,0.00036207,30]
[322622474,1713129289679,-500.0,0.00036207,30]
[322622475,1713129289711,-500.0,0.00036207,30]
[322622476,1713129289744,-500.0,0.00036207,30]
[322622477,1713129289777,-500.0,0.00036207,30]
[322622478,1713129289811,-500.0,0.00036207,30]
[322622479,1713129289845,-420.11003725,0.00036207,30]
[322622480,1713129289880,-500.0,0.00036207,30]
[322622481,1713129289914,-500.0,0.00036207,30]
[322622482,1713129289949,-489.09769033,0.00036207,30]
[322622483,1713129289983,-500.0,0.00036207,30]
[322622484,1713129290019,-500.0,0.00036207,30]
[322622485,1713129290053,-500.0,0.00036207,30]
[322622486,1713129290088,-500.0,0.00036207,30]
[322622487,1713129290123,-638.25,0.00036207,30]
[322622488,1713129290160,-781.44,0.00036207,30]
[322622489,1713129290201,-1029.77,0.00036207,30]
[322622490,1713129290241,-781.44,0.00036207,30]
[322622491,1713129290279,-781.44,0.00036207,30]
[322622492,1713129290316,-1029.77,0.00036207,30]
[322622493,1713129290353,-781.44,0.00036207,30]
[322622494,1713129290390,-1029.77,0.00036207,30]
[322622495,1713129290430,-781.44,0.00036207,30]
[322622496,1713129290474,-1029.77,0.00036207,30]
[322622497,1713129290512,-781.44,0.00036207,30]
[322622498,1713129290550,-781.44,0.00036207,30]
[322622499,1713129290586,-1029.77,0.00036207,30]
[322622500,1713129290621,-781.44,0.00036207,30]
[322622501,1713129290669,-1029.77,0.00036207,30]
[322622502,1713129290710,-781.44,0.00036207,30]
[322622503,1713129290746,-1029.77,0.00036207,30]
[322622504,1713129290784,-1029.77,0.00036207,30]
[322622505,1713129290822,-781.44,0.00036207,30]
[322622506,1713129290857,-1029.77,0.00036207,30]
[322622507,1713129290893,-781.44,0.00036207,30]
[322622508,1713129290927,-1029.77,0.00036207,30]
[322622509,1713129290962,-781.44,0.00036207,30]
[322622510,1713129290995,-1029.77,0.00036207,30]
[322622511,1713129291029,-1029.77,0.00036207,30]
[322622512,1713129291064,-1029.77,0.00036207,30]
[322622513,1713129291099,-1029.77,0.00036207,30]
[322622514,1713129291133,-1029.77,0.00036207,30]
[322622515,1713129291168,-1029.77,0.00036207,30]
[322622516,1713129291204,-1029.77,0.00036207,30]
[322622517,1713129291239,-1029.77,0.00036207,30]
[322622518,1713129291274,-1029.77,0.00036207,30]
[322622519,1713129291309,-1029.77,0.00036207,30]
[322622520,1713129291344,-1029.77,0.00036207,30]
[322622521,1713129291381,-781.44,0.00036207,30]
[322622522,1713129291417,-1029.77,0.00036207,30]
[322622523,1713129291454,-781.44,0.00036207,30]
[322622524,1713129291493,-1029.77,0.00036207,30]
[322622525,1713129291532,-781.44,0.00036207,30]
[322622526,1713129291808,-500.0,0.00036207,30]
[322622527,1713129291849,-1030.00824931,0.00036207,30]
[322622528,1713129291884,-781.44,0.00036207,30]
[322622529,1713129291920,-781.44,0.00036207,30]
[322622530,1713129291955,-500.0,0.00036207,30]
[322622531,1713129291992,-781.44,0.00036207,30]
[322622532,1713129292028,-781.44,0.00036207,30]
[322622533,1713129292064,-781.44,0.00036207,30]
[322622534,1713129292100,-781.44,0.00036207,30]
[322622535,1713129292134,-781.44,0.00036207,30]
[322622536,1713129292171,-781.44,0.00036207,30]
[322622537,1713129292207,-781.50320226,0.00036207,30]
[322622538,1713129292241,-500.0,0.00036207,30]
[322622539,1713129292278,-500.0,0.00036207,30]
[322622540,1713129292313,-500.0,0.00036207,30]
[322622541,1713129292347,-500.0,0.00036207,30]
[322622542,1713129292382,-500.0,0.00036207,30]
[322622543,1713129292418,-500.0,0.00036207,30]
[322622544,1713129292454,-500.0,0.00036207,30]
[322622545,1713129292492,-500.0,0.00036207,30]
[322622546,1713129292529,-500.0,0.00036207,30]
[322622547,1713129292565,-500.0,0.00036207,30]
[322622548,1713129292600,-500.0,0.00036207,30]
[322622549,1713129292635,-500.0,0.00036207,30]
[322622550,1713129292673,-500.0,0.00036207,30]
[322622551,1713129292708,-500.0,0.00036207,30]
[322622552,1713129292742,-500.0,0.00036207,30]
[322622553,1713129292777,-500.0,0.00036207,30]
[322622554,1713129292811,-500.0,0.00036207,30]
[322622555,1713129292844,-505.05827283,0.00036207,30]
[322622556,1713129292879,-500.0,0.00036207,30]
[322622557,1713129292913,-500.0,0.00036207,30]
[322622558,1713129292948,-500.0,0.00036207,30]
[322622559,1713129292983,-500.0,0.00036207,30]
[322622560,1713129293018,-500.0,0.00036207,30]
[322622561,1713129293054,-500.0,0.00036207,30]
[322622562,1713129293091,-500.0,0.00036207,30]
[322622563,1713129293130,-500.0,0.00036207,30]
[322622564,1713129293170,-500.0,0.00036207,30]
[322622565,1713129293206,-303.3344188,0.00036207,30]
[322622566,1713129293242,-500.0,0.00036207,30]
[322622567,1713129293280,-391.41231233,0.00036207,30]
[322622568,1713129293319,-500.0,0.00036207,30]
[322622569,1713129293355,-500.0,0.00036207,30]
[322622570,1713129293392,-500.0,0.00036207,30]
[322622571,1713129293429,-500.0,0.00036207,30]
[322622572,1713129293466,-500.0,0.00036207,30]
[322622573,1713129293506,-500.0,0.00036207,30]
[322622574,1713129293546,-500.0,0.00036207,30]
[322622575,1713129293584,-500.0,0.00036207,30]
[322622576,1713129293621,-504.15436241,0.00036207,30]
[322622577,1713129293666,-500.0,0.00036207,30]
[322622578,1713129293718,-500.0,0.00036207,30]
[322622579,1713129293753,-500.0,0.00036207,30]
[322622580,1713129293790,-500.0,0.00036207,30]
[322622581,1713129293827,-500.0,0.00036207,30]
[322622582,1713129293864,-500.0,0.00036207,30]
[322622583,1713129293900,-500.0,0.00036207,30]
[322622584,1713129293935,-500.0,0.00036207,30]
[322622585,1713129293971,-500.0,0.00036207,30]
[322622586,1713129294006,-500.0,0.00036207,30]
[322622587,1713129294042,-500.0,0.00036207,30]
[322622588,1713129294078,-500.0,0.00036207,30]
[322622589,1713129294113,-500.0,0.00036207,30]
[322622590,1713129294149,-500.0,0.00036207,30]
[322622591,1713129294186,-500.0,0.00036207,30]
[322622592,1713129294223,-500.0,0.00036207,30]
[322622593,1713129294260,-500.0,0.00036207,30]
[322622594,1713129294296,-500.0,0.00036207,30]
[322622595,1713129294334,-500.0,0.00036207,30]
[322622596,1713129294372,-500.0,0.00036207,30]
[322622597,1713129294414,-500.0,0.00036207,30]
[322622598,1713129294452,-500.0,0.00036207,30]
[322622599,1713129294490,-500.0,0.00036207,30]
[322622600,1713129294525,-500.0,0.00036207,30]
[322622601,1713129294561,-500.0,0.00036207,30]
[322622602,1713129294596,-500.0,0.00036207,30]
[322622603,1713129294633,-500.0,0.00036207,30]
[322622604,1713129294669,-500.0,0.00036207,30]
[322622605,1713129294701,-500.0,0.00036207,30]
[322622606,1713129294735,-500.0,0.00036207,30]
[322622607,1713129294771,-500.0,0.00036207,30]
[322622608,1713129294807,-500.0,0.00036207,30]
[322622609,1713129294843,-500.0,0.00036207,30]
[322622610,1713129294881,-500.0,0.00036207,30]
[322622611,1713129294917,-500.0,0.00036207,30]
[322622612,1713129294989,-294.06,0.00036207,30]
[322622613,1713129295087,-500.0,0.00036207,30]
[322622614,1713129295123,-174.09200471,0.00036207,30]
[322622615,1713129295161,-500.0,0.00036207,30]
[322622616,1713129295197,-500.0,0.00036207,30]
[322622617,1713129295233,-500.0,0.00036207,30]
[322622618,1713129295268,-500.0,0.00036207,30]
[322622619,1713129295302,-500.0,0.00036207,30]
[322622620,1713129295339,-500.0,0.00036207,30]
[322622621,1713129295374,-500.0,0.00036207,30]
[322622622,1713129295413,-500.0,0.00036207,30]
[322622623,1713129295449,-500.0,0.00036207,30]
[322622624,1713129295484,-500.0,0.00036207,30]
[322622625,1713129295522,-500.0,0.00036207,30]
[322622626,1713129295559,-500.0,0.00036207,30]
[322622627,1713129295595,-259.10681661,0.00036207,30]
[322622628,1713129295631,-500.0,0.00036207,30]
[322622629,1713129295889,-803.93,0.00036207,30]
[322622630,1713129295931,-803.93,0.00036207,30]
[322622631,1713129295976,-803.93,0.00036207,30]
[322622632,1713129296014,-803.93,0.00036207,30]
[322622633,1713129296057,-803.93,0.00036207,30]
[322622634,1713129296101,-803.93,0.00036207,30]
[322622635,1713129296142,-803.93,0.00036207,30]
[322622636,1713129296179,-803.93,0.00036207,30]
[322622637,1713129296215,-803.93,0.00036207,30]
[322622638,1713129296251,-500.0,0.00036207,30]
[322622639,1713129296287,-803.93,0.00036207,30]
[322622640,1713129296321,-803.93,0.00036207,30]
[322622641,1713129296357,-500.0,0.00036207,30]
[322622642,1713129296393,-803.93,0.00036207,30]
[322622643,1713129296428,-500.0,0.00036207,30]
[322622644,1713129296463,-500.0,0.00036207,30]
[322622645,1713129296500,-500.0,0.00036207,30]
[322622646,1713129296537,-803.93,0.00036207,30]
[322622647,1713129296573,-357.13149899,0.00036207,30]
[322622648,1713129296608,-500.0,0.00036207,30]
[322622649,1713129296643,-500.0,0.00036207,30]
[322622650,1713129296680,-803.93,0.00036207,30]
[322622651,1713129296716,-526.48,0.00036207,30]
[322622652,1713129296750,-500.0,0.00036207,30]
[322622653,1713129296784,-803.93,0.00036207,30]
[322622654,1713129296820,-526.48,0.00036207,30]
[322622655,1713129296855,-500.0,0.00036207,30]
[322622656,1713129296889,-803.93,0.00036207,30]
[322622657,1713129296925,-526.48,0.00036207,30]
[322622658,1713129296958,-500.0,0.00036207,30]
[322622659,1713129296991,-526.48,0.00036207,30]
[322622660,1713129297031,-803.93,0.00036207,30]
[322622661,1713129297066,-526.48,0.00036207,30]
[322622662,1713129297100,-803.93,0.00036207,30]
[322622663,1713129297136,-500.0,0.00036207,30]
[322622664,1713129297177,-526.48,0.00036207,30]
[322622665,1713129297214,-803.93,0.00036207,30]